[Event "December 12 Late 2023"]
[Site "https://www.chess.com"]
[Date "2023.12.12"]
[Round "9"]
[White "Silva, Kaua Marques"]
[Black "Bolourchifard, Farzad"]
[Result "0-1"]
[Board "34"]
[TimeControl "180+1"]
[WhiteFideId "22701168"]
[BlackFideId "12510084"]
[WhiteElo "2561"]
[BlackElo "2734"]
[WhiteTeam "BRA"]
[BlackTeam "IRI"]
[WhiteClock "0:00:01"]
[BlackClock "0:00:08"]

1. e4 {[%clk 0:03:00]}  e5 {[%clk 0:02:59]} 2. Nf3 {[%clk 0:02:57]}  Nc6 {[%clk 0:02:57]} 3. Bb5 {[%clk 0:02:52]}  a6 {[%clk 0:02:57]} 4. Ba4 {[%clk 0:02:51]}  d6 {[%clk 0:02:57]} 5. d4 {[%clk 0:02:50]}  Bd7 {[%clk 0:02:58]} 6. d5 {[%clk 0:02:49]}  Nb8 {[%clk 0:02:53]} 7. c4 {[%clk 0:02:49]}  Nf6 {[%clk 0:02:52]} 8. Nc3 {[%clk 0:02:49]}  g6 {[%clk 0:02:50]} 9. O-O {[%clk 0:02:46]}  Bg7 {[%clk 0:02:50]} 10. c5 {[%clk 0:02:42]}  O-O {[%clk 0:02:47]} 11. b4 {[%clk 0:02:40]}  Bg4 {[%clk 0:02:29]} 12. h3 {[%clk 0:02:38]}  Bxf3 {[%clk 0:02:30]} 13. Qxf3 {[%clk 0:02:39]}  a5 {[%clk 0:02:30]} 14. Rb1 {[%clk 0:02:32]}  Nbd7 {[%clk 0:01:53]} 15. c6 {[%clk 0:02:13]}  bxc6 {[%clk 0:01:28]} 16. Bxc6 {[%clk 0:02:14]}  Ra7 {[%clk 0:01:20]} 17. Be3 {[%clk 0:02:13]}  Nb6 {[%clk 0:01:18]} 18. b5 {[%clk 0:02:06]}  Nfd7 {[%clk 0:01:14]} 19. Na4 {[%clk 0:02:01]}  f5 {[%clk 0:01:09]} 20. Bxd7 {[%clk 0:01:59]}  Qxd7 {[%clk 0:01:09]} 21. Nxb6 {[%clk 0:01:58]}  cxb6 {[%clk 0:01:09]} 22. Bxb6 {[%clk 0:01:59]}  Rb7 {[%clk 0:01:03]} 23. Bxa5 {[%clk 0:01:53]}  Ra8 {[%clk 0:01:00]} 24. Qc3 {[%clk 0:01:32]}  Rxb5 {[%clk 0:00:53]} 25. Qc6 {[%clk 0:01:17]}  Qxc6 {[%clk 0:00:50]} 26. dxc6 {[%clk 0:01:17]}  Rbxa5 {[%clk 0:00:49]} 27. c7 {[%clk 0:01:13]}  Rf8 {[%clk 0:00:14]} 28. Rb8 {[%clk 0:01:11]}  Rc5 {[%clk 0:00:15]} 29. exf5 {[%clk 0:00:57]}  gxf5 {[%clk 0:00:16]} 30. Rd1 {[%clk 0:00:56]}  Rxc7 {[%clk 0:00:15]} 31. Rb6 {[%clk 0:00:56]}  Rd8 {[%clk 0:00:15]} 32. Rbxd6 {[%clk 0:00:56]}  Rxd6 {[%clk 0:00:15]} 33. Rxd6 {[%clk 0:00:57]}  Rc1+ {[%clk 0:00:14]} 34. Kh2 {[%clk 0:00:58]}  Ra1 {[%clk 0:00:15]} 35. Rd2 {[%clk 0:00:50]}  Bh6 {[%clk 0:00:14]} 36. Re2 {[%clk 0:00:47]}  e4 {[%clk 0:00:14]} 37. g4 {[%clk 0:00:47]}  fxg4 {[%clk 0:00:10]} 38. hxg4 {[%clk 0:00:47]}  Kg7 {[%clk 0:00:10]} 39. Kg3 {[%clk 0:00:45]}  Kf6 {[%clk 0:00:09]} 40. Rxe4 {[%clk 0:00:32]}  Rxa2 {[%clk 0:00:09]} 41. Rc4 {[%clk 0:00:32]}  Kg6 {[%clk 0:00:09]} 42. Rc6+ {[%clk 0:00:31]}  Kg7 {[%clk 0:00:09]} 43. Rc7+ {[%clk 0:00:29]}  Kg8 {[%clk 0:00:09]} 44. Rc8+ {[%clk 0:00:28]}  Bf8 {[%clk 0:00:10]} 45. f3 {[%clk 0:00:29]}  Ra7 {[%clk 0:00:09]} 46. Kh4 {[%clk 0:00:29]}  Kf7 {[%clk 0:00:09]} 47. Kg3 {[%clk 0:00:28]}  Ra6 {[%clk 0:00:09]} 48. Rc3 {[%clk 0:00:26]}  Kg6 {[%clk 0:00:09]} 49. Rb3 {[%clk 0:00:25]}  Bg7 {[%clk 0:00:09]} 50. Kh3 {[%clk 0:00:25]}  h6 {[%clk 0:00:10]} 51. Kg3 {[%clk 0:00:25]}  Bf6 {[%clk 0:00:10]} 52. Kh3 {[%clk 0:00:26]}  Ra4 {[%clk 0:00:11]} 53. Kg3 {[%clk 0:00:26]}  Be5+ {[%clk 0:00:12]} 54. Kh3 {[%clk 0:00:26]}  Bf4 {[%clk 0:00:13]} 55. Rb6+ {[%clk 0:00:22]}  Kf7 {[%clk 0:00:13]} 56. Rb7+ {[%clk 0:00:20]}  Ke6 {[%clk 0:00:14]} 57. Kh4 {[%clk 0:00:18]}  Ra3 {[%clk 0:00:12]} 58. Rb6+ {[%clk 0:00:15]}  Kd5 {[%clk 0:00:11]} 59. Rb5+ {[%clk 0:00:12]}  Kc6 {[%clk 0:00:09]} 60. Rf5 {[%clk 0:00:12]}  Rxf3 {[%clk 0:00:10]} 61. Kh5 {[%clk 0:00:13]}  Rh3+ {[%clk 0:00:10]} 62. Kg6 {[%clk 0:00:13]}  Bg5 {[%clk 0:00:10]} 63. Ra5 {[%clk 0:00:09]}  Kd6 {[%clk 0:00:11]} 64. Kf5 {[%clk 0:00:09]}  Rf3+ {[%clk 0:00:11]} 65. Kg6 {[%clk 0:00:09]}  Ke6 {[%clk 0:00:11]} 66. Ra6+ {[%clk 0:00:09]}  Ke5 {[%clk 0:00:12]} 67. Ra5+ {[%clk 0:00:10]}  Kf4 {[%clk 0:00:12]} 68. Rf5+ {[%clk 0:00:08]}  Kg3 {[%clk 0:00:12]} 69. Kh5 {[%clk 0:00:04]}  Ra3 {[%clk 0:00:11]} 70. Rb5 {[%clk 0:00:04]}  Kf3 {[%clk 0:00:09]} 71. Rf5+ {[%clk 0:00:04]}  Bf4 {[%clk 0:00:08]} 72. Rb5 {[%clk 0:00:04]}  Ra1 {[%clk 0:00:08]} 73. g5 {[%clk 0:00:01]}  hxg5 {[%clk 0:00:08]} 74. Kg6 {[%clk 0:00:02]}  g4 {[%clk 0:00:08]} 75. Kf5 {[%clk 0:00:02]}  g3 {[%clk 0:00:08]} 76. Rb3+ {[%clk 0:00:01]}  Be3 {[%clk 0:00:08]} 0-1

[Event "December 12 Late 2023"]
[Site "https://www.chess.com"]
[Date "2023.12.12"]
[Round "9"]
[White "Nagare Kaivalya Sandip"]
[Black "Korchynskyi, Mykola"]
[Result "1-0"]
[Board "37"]
[TimeControl "180+1"]
[WhiteFideId "25957929"]
[BlackFideId "34138005"]
[WhiteElo "2678"]
[BlackElo "2550"]
[WhiteTeam "IND"]
[BlackTeam "UKR"]
[WhiteClock "0:00:36"]
[BlackClock "0:00:03"]

1. e4 {[%clk 0:03:00]}  e6 {[%clk 0:02:56]} 2. d4 {[%clk 0:02:59]}  d5 {[%clk 0:02:55]} 3. Nc3 {[%clk 0:02:59]}  Bb4 {[%clk 0:02:47]} 4. e5 {[%clk 0:02:50]}  c5 {[%clk 0:02:46]} 5. a3 {[%clk 0:02:51]}  Bxc3+ {[%clk 0:02:46]} 6. bxc3 {[%clk 0:02:52]}  Ne7 {[%clk 0:02:46]} 7. Nf3 {[%clk 0:02:51]}  Nbc6 {[%clk 0:02:38]} 8. a4 {[%clk 0:02:41]}  O-O {[%clk 0:02:34]} 9. Bd3 {[%clk 0:02:19]}  Qa5 {[%clk 0:02:01]} 10. Bd2 {[%clk 0:02:07]}  Ng6 {[%clk 0:01:49]} 11. h4 {[%clk 0:02:06]}  c4 {[%clk 0:01:44]} 12. Be2 {[%clk 0:02:04]}  Nge7 {[%clk 0:01:35]} 13. h5 {[%clk 0:02:02]}  f6 {[%clk 0:01:33]} 14. h6 {[%clk 0:02:02]}  g6 {[%clk 0:01:33]} 15. exf6 {[%clk 0:02:02]}  Rxf6 {[%clk 0:01:34]} 16. O-O {[%clk 0:01:55]}  Bd7 {[%clk 0:01:27]} 17. Re1 {[%clk 0:01:54]}  Raf8 {[%clk 0:01:26]} 18. Bf1 {[%clk 0:01:49]}  Qc7 {[%clk 0:01:21]} 19. Bg5 {[%clk 0:01:44]}  R6f7 {[%clk 0:01:15]} 20. Ne5 {[%clk 0:01:28]}  Nxe5 {[%clk 0:01:12]} 21. dxe5 {[%clk 0:01:26]}  Nc6 {[%clk 0:00:52]} 22. Bf6 {[%clk 0:01:25]}  Qb6 {[%clk 0:00:46]} 23. Rb1 {[%clk 0:01:23]}  Qc7 {[%clk 0:00:45]} 24. Qg4 {[%clk 0:01:21]}  b6 {[%clk 0:00:40]} 25. Re3 {[%clk 0:01:21]}  Ne7 {[%clk 0:00:39]} 26. Qh3 {[%clk 0:01:11]}  Bxa4 {[%clk 0:00:37]} 27. Qxe6 {[%clk 0:00:42]}  Bxc2 {[%clk 0:00:28]} 28. Ra1 {[%clk 0:00:38]}  Be4 {[%clk 0:00:11]} 29. Rxe4 {[%clk 0:00:36]}  dxe4 {[%clk 0:00:10]} 30. Bxc4 {[%clk 0:00:37]}  Re8 {[%clk 0:00:03]} 31. Qxf7# {[%clk 0:00:36]} 1-0

[Event "December 12 Late 2023"]
[Site "https://www.chess.com"]
[Date "2023.12.12"]
[Round "9"]
[White "Lin, Bryan Enming"]
[Black "Karacsonyi, Gellert"]
[Result "1/2-1/2"]
[Board "38"]
[TimeControl "180+1"]
[WhiteFideId "30987121"]
[BlackFideId "764620"]
[WhiteElo "2533"]
[BlackElo "2667"]
[WhiteTeam "USA"]
[BlackTeam "HUN"]
[WhiteClock "0:00:22"]
[BlackClock "0:00:15"]

1. e4 {[%clk 0:02:59]}  c5 {[%clk 0:02:58]} 2. Nf3 {[%clk 0:02:58]}  Nc6 {[%clk 0:02:58]} 3. d4 {[%clk 0:02:58]}  cxd4 {[%clk 0:02:59]} 4. Nxd4 {[%clk 0:02:59]}  g6 {[%clk 0:02:59]} 5. c4 {[%clk 0:02:59]}  Nf6 {[%clk 0:03:00]} 6. Nc3 {[%clk 0:02:59]}  d6 {[%clk 0:03:01]} 7. Be2 {[%clk 0:02:58]}  Nxd4 {[%clk 0:03:01]} 8. Qxd4 {[%clk 0:02:59]}  Bg7 {[%clk 0:03:02]} 9. O-O {[%clk 0:02:59]}  O-O {[%clk 0:03:02]} 10. Qd3 {[%clk 0:02:53]}  a5 {[%clk 0:03:01]} 11. Be3 {[%clk 0:02:28]}  a4 {[%clk 0:03:00]} 12. Rad1 {[%clk 0:02:26]}  Qa5 {[%clk 0:03:00]} 13. f3 {[%clk 0:02:26]}  Be6 {[%clk 0:02:59]} 14. Bd4 {[%clk 0:02:23]}  Rfc8 {[%clk 0:02:59]} 15. b3 {[%clk 0:02:23]}  axb3 {[%clk 0:02:58]} 16. axb3 {[%clk 0:02:24]}  Qb4 {[%clk 0:02:50]} 17. Nb5 {[%clk 0:02:20]}  Nd7 {[%clk 0:02:47]} 18. Qe3 {[%clk 0:02:13]}  Nc5 {[%clk 0:02:42]} 19. Bxg7 {[%clk 0:02:11]}  Kxg7 {[%clk 0:02:41]} 20. Nd4 {[%clk 0:02:12]}  Ra2 {[%clk 0:02:25]} 21. f4 {[%clk 0:02:10]}  Bd7 {[%clk 0:02:21]} 22. f5 {[%clk 0:02:07]}  Rf8 {[%clk 0:02:15]} 23. e5 {[%clk 0:02:06]}  dxe5 {[%clk 0:01:36]} 24. Qxe5+ {[%clk 0:02:04]}  f6 {[%clk 0:01:37]} 25. Qxe7+ {[%clk 0:02:01]}  Rf7 {[%clk 0:01:37]} 26. Qd6 {[%clk 0:01:54]}  Nd3 {[%clk 0:01:17]} 27. Qg3 {[%clk 0:01:39]}  Ne5 {[%clk 0:01:11]} 28. Kh1 {[%clk 0:01:17]}  Ra8 {[%clk 0:00:43]} 29. fxg6 {[%clk 0:01:04]}  hxg6 {[%clk 0:00:44]} 30. Bd3 {[%clk 0:01:04]}  Rh8 {[%clk 0:00:37]} 31. Bf5 {[%clk 0:01:04]}  Qb6 {[%clk 0:00:22]} 32. Bxd7 {[%clk 0:00:56]}  Rxd7 {[%clk 0:00:22]} 33. Nf5+ {[%clk 0:00:54]}  Kf7 {[%clk 0:00:22]} 34. Qxe5 {[%clk 0:00:28]}  fxe5 {[%clk 0:00:21]} 35. Rxd7+ {[%clk 0:00:28]}  Ke8 {[%clk 0:00:14]} 36. Re7+ {[%clk 0:00:28]}  Kd8 {[%clk 0:00:14]} 37. Rd1+ {[%clk 0:00:26]}  Kc8 {[%clk 0:00:14]} 38. Nd6+ {[%clk 0:00:26]}  Kb8 {[%clk 0:00:14]} 39. c5 {[%clk 0:00:24]}  Qxb3 {[%clk 0:00:11]} 40. Rxb7+ {[%clk 0:00:22]}  Qxb7 {[%clk 0:00:11]} 41. Nxb7 {[%clk 0:00:23]}  Kxb7 {[%clk 0:00:12]} 42. Rd6 {[%clk 0:00:21]}  Rg8 {[%clk 0:00:06]} 43. Re6 {[%clk 0:00:20]}  Rd8 {[%clk 0:00:06]} 44. Kg1 {[%clk 0:00:20]}  Rd5 {[%clk 0:00:05]} 45. c6+ {[%clk 0:00:20]}  Kc7 {[%clk 0:00:05]} 46. Rxg6 {[%clk 0:00:21]}  Rd2 {[%clk 0:00:05]} 47. Re6 {[%clk 0:00:21]}  Re2 {[%clk 0:00:05]} 48. Kf1 {[%clk 0:00:21]}  Re4 {[%clk 0:00:05]} 49. g3 {[%clk 0:00:22]}  Re3 {[%clk 0:00:03]} 50. Kf2 {[%clk 0:00:22]}  Re4 {[%clk 0:00:04]} 51. h4 {[%clk 0:00:22]}  Kd8 {[%clk 0:00:04]} 52. h5 {[%clk 0:00:22]}  Kc7 {[%clk 0:00:04]} 53. h6 {[%clk 0:00:22]}  Rd4 {[%clk 0:00:04]} 54. h7 {[%clk 0:00:21]}  Rd2+ {[%clk 0:00:03]} 55. Kg1 {[%clk 0:00:21]}  Rd1+ {[%clk 0:00:03]} 56. Kg2 {[%clk 0:00:21]}  Rd2+ {[%clk 0:00:04]} 57. Kh3 {[%clk 0:00:21]}  Rd1 {[%clk 0:00:05]} 58. Kh2 {[%clk 0:00:18]}  Rd2+ {[%clk 0:00:05]} 59. Kg1 {[%clk 0:00:18]}  Rd1+ {[%clk 0:00:06]} 60. Kf2 {[%clk 0:00:19]}  Rh1 {[%clk 0:00:06]} 61. Re7+ {[%clk 0:00:17]}  Kxc6 {[%clk 0:00:07]} 62. Kf3 {[%clk 0:00:17]}  Kd6 {[%clk 0:00:07]} 63. Ra7 {[%clk 0:00:17]}  Ke6 {[%clk 0:00:08]} 64. Kg4 {[%clk 0:00:16]}  Kf6 {[%clk 0:00:07]} 65. Kf3 {[%clk 0:00:16]}  Kg6 {[%clk 0:00:06]} 66. Ke4 {[%clk 0:00:17]}  Rxh7 {[%clk 0:00:05]} 67. Rxh7 {[%clk 0:00:10]}  Kxh7 {[%clk 0:00:06]} 68. Kxe5 {[%clk 0:00:09]}  Kg6 {[%clk 0:00:06]} 69. Kf4 {[%clk 0:00:08]}  Kf6 {[%clk 0:00:07]} 70. Kg4 {[%clk 0:00:09]}  Kg6 {[%clk 0:00:08]} 71. Kh4 {[%clk 0:00:09]}  Kh6 {[%clk 0:00:08]} 72. Kg4 {[%clk 0:00:10]}  Kg6 {[%clk 0:00:09]} 73. Kf4 {[%clk 0:00:11]}  Kf6 {[%clk 0:00:09]} 74. Ke4 {[%clk 0:00:11]}  Kg5 {[%clk 0:00:09]} 75. Kf3 {[%clk 0:00:12]}  Kf5 {[%clk 0:00:10]} 76. g4+ {[%clk 0:00:13]}  Kg5 {[%clk 0:00:10]} 77. Kg3 {[%clk 0:00:13]}  Kg6 {[%clk 0:00:11]} 78. Kf4 {[%clk 0:00:14]}  Kf6 {[%clk 0:00:12]} 79. g5+ {[%clk 0:00:15]}  Kg6 {[%clk 0:00:12]} 80. Kg4 {[%clk 0:00:16]}  Kg7 {[%clk 0:00:13]} 81. Kf4 {[%clk 0:00:17]}  Kg6 {[%clk 0:00:14]} 82. Kg4 {[%clk 0:00:17]}  Kg7 {[%clk 0:00:14]} 83. Kg3 {[%clk 0:00:18]}  Kg6 {[%clk 0:00:15]} 84. Kh4 {[%clk 0:00:19]}  Kg7 {[%clk 0:00:16]} 85. Kh5 {[%clk 0:00:20]}  Kh7 {[%clk 0:00:16]} 86. Kh4 {[%clk 0:00:21]}  Kg6 {[%clk 0:00:15]} 87. Kg4 {[%clk 0:00:22]} 1/2-1/2

[Event "December 12 Late 2023"]
[Site "https://www.chess.com"]
[Date "2023.12.12"]
[Round "9"]
[White "Goryachkina, Aleksandra"]
[Black "Cervantes Landeiro, Thalia"]
[Result "1-0"]
[Board "39"]
[TimeControl "180+1"]
[WhiteFideId "4147103"]
[BlackFideId "3520498"]
[WhiteElo "2665"]
[BlackElo "2508"]
[WhiteTeam "FID"]
[BlackTeam "USA"]
[WhiteClock "0:00:54"]
[BlackClock "0:00:11"]

1. e4 {[%clk 0:02:59]}  c5 {[%clk 0:02:59]} 2. Nf3 {[%clk 0:02:59]}  d6 {[%clk 0:02:59]} 3. Bb5+ {[%clk 0:02:59]}  Nd7 {[%clk 0:02:59]} 4. O-O {[%clk 0:02:56]}  a6 {[%clk 0:02:59]} 5. Bxd7+ {[%clk 0:02:56]}  Bxd7 {[%clk 0:02:59]} 6. Re1 {[%clk 0:02:56]}  Nf6 {[%clk 0:02:58]} 7. c3 {[%clk 0:02:57]}  g6 {[%clk 0:02:38]} 8. d4 {[%clk 0:02:55]}  cxd4 {[%clk 0:02:38]} 9. cxd4 {[%clk 0:02:55]}  Bg7 {[%clk 0:02:36]} 10. e5 {[%clk 0:02:51]}  dxe5 {[%clk 0:02:28]} 11. dxe5 {[%clk 0:02:51]}  Ng4 {[%clk 0:02:17]} 12. h3 {[%clk 0:02:32]}  Nh6 {[%clk 0:02:08]} 13. Nc3 {[%clk 0:02:19]}  O-O {[%clk 0:01:54]} 14. Bg5 {[%clk 0:02:19]}  f6 {[%clk 0:01:36]} 15. Qb3+ {[%clk 0:02:15]}  Kh8 {[%clk 0:01:34]} 16. exf6 {[%clk 0:02:12]}  exf6 {[%clk 0:01:33]} 17. Bxh6 {[%clk 0:02:11]}  Bxh6 {[%clk 0:01:33]} 18. Qxb7 {[%clk 0:02:10]}  Rb8 {[%clk 0:01:30]} 19. Qxa6 {[%clk 0:02:10]}  Rxb2 {[%clk 0:01:29]} 20. Rad1 {[%clk 0:02:10]}  Qc7 {[%clk 0:01:08]} 21. Ne4 {[%clk 0:01:55]}  Bc6 {[%clk 0:00:56]} 22. Qa3 {[%clk 0:01:31]}  Rbb8 {[%clk 0:00:43]} 23. Qc3 {[%clk 0:01:25]}  Rbc8 {[%clk 0:00:31]} 24. Nd6 {[%clk 0:01:14]}  Rcd8 {[%clk 0:00:25]} 25. Nf7+ {[%clk 0:01:12]}  Qxf7 {[%clk 0:00:23]} 26. Rxd8 {[%clk 0:01:05]}  Rxd8 {[%clk 0:00:22]} 27. Qxc6 {[%clk 0:01:06]}  Bg7 {[%clk 0:00:21]} 28. a4 {[%clk 0:01:05]}  f5 {[%clk 0:00:20]} 29. Ng5 {[%clk 0:01:01]}  Qa2 {[%clk 0:00:17]} 30. Re8+ {[%clk 0:00:56]}  Bf8 {[%clk 0:00:10]} 31. Qf6+ {[%clk 0:00:54]}  Kg8 {[%clk 0:00:11]} 32. Qxf8# {[%clk 0:00:54]} 1-0

[Event "December 12 Late 2023"]
[Site "https://www.chess.com"]
[Date "2023.12.12"]
[Round "9"]
[White "Solon, Nathan"]
[Black "yaguigor"]
[Result "1/2-1/2"]
[Board "40"]
[TimeControl "180+1"]
[WhiteFideId "2017229"]
[WhiteElo "2662"]
[BlackElo "2504"]
[WhiteTeam "USA"]
[WhiteClock "0:00:14"]
[BlackClock "0:00:10"]

1. d4 {[%clk 0:03:00]}  d5 {[%clk 0:02:59]} 2. Bf4 {[%clk 0:03:00]}  Nf6 {[%clk 0:02:59]} 3. e3 {[%clk 0:03:00]}  c5 {[%clk 0:02:59]} 4. Nf3 {[%clk 0:03:00]}  Nc6 {[%clk 0:02:57]} 5. Nbd2 {[%clk 0:03:00]}  cxd4 {[%clk 0:02:52]} 6. exd4 {[%clk 0:03:01]}  Bg4 {[%clk 0:02:51]} 7. c3 {[%clk 0:02:58]}  e6 {[%clk 0:02:41]} 8. Qb3 {[%clk 0:02:58]}  Qc8 {[%clk 0:02:32]} 9. Bd3 {[%clk 0:02:57]}  Bxf3 {[%clk 0:02:31]} 10. Nxf3 {[%clk 0:02:56]}  Be7 {[%clk 0:02:31]} 11. O-O {[%clk 0:02:55]}  O-O {[%clk 0:02:30]} 12. Rae1 {[%clk 0:02:49]}  Nh5 {[%clk 0:02:25]} 13. Bc1 {[%clk 0:02:48]}  Bd6 {[%clk 0:02:20]} 14. Ne5 {[%clk 0:02:39]}  f5 {[%clk 0:01:48]} 15. g3 {[%clk 0:02:18]}  Nf6 {[%clk 0:01:46]} 16. Qd1 {[%clk 0:02:09]}  Bxe5 {[%clk 0:01:29]} 17. dxe5 {[%clk 0:02:09]}  Nd7 {[%clk 0:01:30]} 18. f4 {[%clk 0:02:09]}  Nc5 {[%clk 0:01:29]} 19. Bb1 {[%clk 0:02:03]}  b5 {[%clk 0:01:26]} 20. Be3 {[%clk 0:02:02]}  Ne4 {[%clk 0:01:26]} 21. a3 {[%clk 0:01:55]}  Qb7 {[%clk 0:01:24]} 22. g4 {[%clk 0:01:49]}  g6 {[%clk 0:01:18]} 23. Re2 {[%clk 0:01:45]}  a5 {[%clk 0:01:15]} 24. Rg2 {[%clk 0:01:41]}  Kh8 {[%clk 0:01:15]} 25. Kh1 {[%clk 0:01:18]}  b4 {[%clk 0:01:12]} 26. cxb4 {[%clk 0:01:19]}  axb4 {[%clk 0:01:12]} 27. a4 {[%clk 0:01:20]}  b3 {[%clk 0:01:10]} 28. gxf5 {[%clk 0:01:16]}  gxf5 {[%clk 0:01:03]} 29. Bxe4 {[%clk 0:01:16]}  fxe4 {[%clk 0:01:00]} 30. Qh5 {[%clk 0:01:09]}  d4 {[%clk 0:00:51]} 31. f5 {[%clk 0:00:42]}  dxe3 {[%clk 0:00:44]} 32. f6 {[%clk 0:00:43]}  Rf7 {[%clk 0:00:38]} 33. Rfg1 {[%clk 0:00:38]}  Nxe5 {[%clk 0:00:25]} 34. Qxe5 {[%clk 0:00:36]}  Qd5 {[%clk 0:00:25]} 35. Qg3 {[%clk 0:00:30]}  Qd8 {[%clk 0:00:16]} 36. Qxe3 {[%clk 0:00:20]}  Qxf6 {[%clk 0:00:15]} 37. Qxe4 {[%clk 0:00:21]}  Qf3 {[%clk 0:00:13]} 38. Qd4+ {[%clk 0:00:17]}  Qf6 {[%clk 0:00:11]} 39. Qg4 {[%clk 0:00:15]}  h6 {[%clk 0:00:09]} 40. Qh3 {[%clk 0:00:13]}  Kh7 {[%clk 0:00:08]} 41. Qxb3 {[%clk 0:00:13]}  Raf8 {[%clk 0:00:07]} 42. Qd3+ {[%clk 0:00:12]}  Qf5 {[%clk 0:00:07]} 43. Qxf5+ {[%clk 0:00:11]}  exf5 {[%clk 0:00:07]} 44. b4 {[%clk 0:00:11]}  f4 {[%clk 0:00:07]} 45. Rf2 {[%clk 0:00:11]}  f3 {[%clk 0:00:08]} 46. b5 {[%clk 0:00:11]}  Rf4 {[%clk 0:00:08]} 47. Ra1 {[%clk 0:00:10]}  Rb4 {[%clk 0:00:05]} 48. h4 {[%clk 0:00:10]}  Rxh4+ {[%clk 0:00:04]} 49. Rh2 {[%clk 0:00:09]}  Rb4 {[%clk 0:00:05]} 50. Rh5 {[%clk 0:00:09]}  f2 {[%clk 0:00:04]} 51. Rf1 {[%clk 0:00:08]}  Rxa4 {[%clk 0:00:04]} 52. Rh2 {[%clk 0:00:08]}  Rb4 {[%clk 0:00:04]} 53. Rhxf2 {[%clk 0:00:06]}  Rxf2 {[%clk 0:00:05]} 54. Rxf2 {[%clk 0:00:07]}  Rxb5 {[%clk 0:00:06]} 55. Rf6 {[%clk 0:00:08]}  Kg7 {[%clk 0:00:06]} 56. Ra6 {[%clk 0:00:08]}  Rh5+ {[%clk 0:00:06]} 57. Kg2 {[%clk 0:00:08]}  Rg5+ {[%clk 0:00:07]} 58. Kh2 {[%clk 0:00:07]}  Rf5 {[%clk 0:00:07]} 59. Ra3 {[%clk 0:00:07]}  Rf6 {[%clk 0:00:07]} 60. Rg3+ {[%clk 0:00:08]}  Rg6 {[%clk 0:00:07]} 61. Rxg6+ {[%clk 0:00:08]}  Kxg6 {[%clk 0:00:07]} 62. Kh1 {[%clk 0:00:09]}  Kg5 {[%clk 0:00:08]} 63. Kg1 {[%clk 0:00:09]}  Kg4 {[%clk 0:00:09]} 64. Kh1 {[%clk 0:00:10]}  Kg3 {[%clk 0:00:09]} 65. Kg1 {[%clk 0:00:11]}  h5 {[%clk 0:00:09]} 66. Kh1 {[%clk 0:00:12]}  h4 {[%clk 0:00:09]} 67. Kg1 {[%clk 0:00:13]}  h3 {[%clk 0:00:10]} 68. Kh1 {[%clk 0:00:14]}  h2 {[%clk 0:00:10]} 1/2-1/2

[Event "December 12 Late 2023"]
[Site "https://www.chess.com"]
[Date "2023.12.12"]
[Round "9"]
[White "Gubajdullin, Alexei"]
[Black "Dubessay, Bastien"]
[Result "1-0"]
[Board "41"]
[TimeControl "180+1"]
[WhiteFideId "4141202"]
[BlackFideId "650048"]
[WhiteElo "2640"]
[BlackElo "2455"]
[WhiteTeam "RUS"]
[BlackTeam "FRA"]
[WhiteClock "0:00:30"]
[BlackClock "0:00:10"]

1. e4 {[%clk 0:02:58]}  e6 {[%clk 0:02:59]} 2. d4 {[%clk 0:02:57]}  d5 {[%clk 0:03:00]} 3. Nd2 {[%clk 0:02:55]}  Nf6 {[%clk 0:02:59]} 4. e5 {[%clk 0:02:55]}  Nfd7 {[%clk 0:03:00]} 5. Bd3 {[%clk 0:02:56]}  c5 {[%clk 0:03:00]} 6. c3 {[%clk 0:02:56]}  b5 {[%clk 0:03:01]} 7. Bxb5 {[%clk 0:02:52]}  Qb6 {[%clk 0:03:00]} 8. Bxd7+ {[%clk 0:02:44]}  Nxd7 {[%clk 0:02:52]} 9. Ne2 {[%clk 0:02:43]}  Ba6 {[%clk 0:02:27]} 10. O-O {[%clk 0:02:42]}  f6 {[%clk 0:02:27]} 11. exf6 {[%clk 0:02:38]}  Nxf6 {[%clk 0:02:28]} 12. Re1 {[%clk 0:02:37]}  Bd6 {[%clk 0:02:25]} 13. Nf3 {[%clk 0:02:36]}  Ne4 {[%clk 0:02:14]} 14. Ng3 {[%clk 0:02:33]}  O-O {[%clk 0:01:54]} 15. Nxe4 {[%clk 0:02:10]}  dxe4 {[%clk 0:01:55]} 16. Rxe4 {[%clk 0:02:10]}  Bb7 {[%clk 0:01:56]} 17. Rh4 {[%clk 0:02:10]}  Bxf3 {[%clk 0:01:52]} 18. gxf3 {[%clk 0:02:10]}  Rad8 {[%clk 0:01:41]} 19. Qd3 {[%clk 0:02:08]}  g6 {[%clk 0:01:41]} 20. Qe4 {[%clk 0:02:07]}  Kh8 {[%clk 0:01:30]} 21. Bg5 {[%clk 0:01:43]}  Rd7 {[%clk 0:01:15]} 22. b3 {[%clk 0:01:21]}  cxd4 {[%clk 0:01:15]} 23. cxd4 {[%clk 0:01:21]}  Rf5 {[%clk 0:01:08]} 24. Be3 {[%clk 0:01:19]}  Qd8 {[%clk 0:01:05]} 25. Rg4 {[%clk 0:01:13]}  Qf6 {[%clk 0:01:03]} 26. Rc1 {[%clk 0:01:10]}  Rxf3 {[%clk 0:00:54]} 27. d5 {[%clk 0:01:08]}  e5 {[%clk 0:00:26]} 28. Bh6 {[%clk 0:00:53]}  Rd8 {[%clk 0:00:17]} 29. Bg5 {[%clk 0:00:51]}  Qf5 {[%clk 0:00:16]} 30. Bxd8 {[%clk 0:00:47]}  Rxf2 {[%clk 0:00:14]} 31. Qxf5 {[%clk 0:00:44]}  Rxf5 {[%clk 0:00:13]} 32. Rc8 {[%clk 0:00:40]}  Kg7 {[%clk 0:00:12]} 33. Rgc4 {[%clk 0:00:30]}  Rg5+ {[%clk 0:00:10]} 1-0

[Event "December 12 Late 2023"]
[Site "https://www.chess.com"]
[Date "2023.12.12"]
[Round "9"]
[White "Goltsev, Dmitry"]
[Black "Morris-Suzuki, Alan H"]
[Result "1-0"]
[Board "45"]
[TimeControl "180+1"]
[WhiteFideId "24176710"]
[BlackFideId "30933218"]
[WhiteElo "2669"]
[BlackElo "2534"]
[WhiteTeam "RUS"]
[BlackTeam "USA"]
[WhiteClock "0:02:05"]
[BlackClock "0:00:42"]

1. e4 {[%clk 0:02:55]}  c5 {[%clk 0:02:59]} 2. Nf3 {[%clk 0:02:56]}  d6 {[%clk 0:02:59]} 3. d4 {[%clk 0:02:56]}  cxd4 {[%clk 0:02:59]} 4. Nxd4 {[%clk 0:02:57]}  Nf6 {[%clk 0:02:59]} 5. Nc3 {[%clk 0:02:57]}  a6 {[%clk 0:02:59]} 6. Be2 {[%clk 0:02:57]}  e5 {[%clk 0:02:59]} 7. Nf5 {[%clk 0:02:57]}  d5 {[%clk 0:02:56]} 8. Ng3 {[%clk 0:02:56]}  d4 {[%clk 0:02:54]} 9. Nb1 {[%clk 0:02:56]}  Nc6 {[%clk 0:02:53]} 10. O-O {[%clk 0:02:55]}  Bc5 {[%clk 0:02:52]} 11. c3 {[%clk 0:02:55]}  O-O {[%clk 0:02:47]} 12. Bg5 {[%clk 0:02:54]}  h6 {[%clk 0:02:47]} 13. Bd2 {[%clk 0:02:53]}  d3 {[%clk 0:02:23]} 14. Bf3 {[%clk 0:02:52]}  b5 {[%clk 0:02:23]} 15. b4 {[%clk 0:02:52]}  Bb6 {[%clk 0:02:17]} 16. a4 {[%clk 0:02:51]}  Be6 {[%clk 0:02:16]} 17. Na3 {[%clk 0:02:51]}  Bc4 {[%clk 0:02:04]} 18. axb5 {[%clk 0:02:41]}  axb5 {[%clk 0:02:04]} 19. Nxc4 {[%clk 0:02:42]}  bxc4 {[%clk 0:02:03]} 20. Nf5 {[%clk 0:02:40]}  Qd7 {[%clk 0:01:55]} 21. Rxa8 {[%clk 0:02:31]}  Rxa8 {[%clk 0:01:53]} 22. Qc1 {[%clk 0:02:32]}  Ne7 {[%clk 0:01:48]} 23. Bxh6 {[%clk 0:02:29]}  Nxf5 {[%clk 0:01:45]} 24. exf5 {[%clk 0:02:29]}  Qxf5 {[%clk 0:01:12]} 25. Bxa8 {[%clk 0:02:26]}  gxh6 {[%clk 0:01:12]} 26. Qxh6 {[%clk 0:02:20]}  Bxf2+ {[%clk 0:01:07]} 27. Rxf2 {[%clk 0:02:08]}  Qxf2+ {[%clk 0:01:07]} 28. Kxf2 {[%clk 0:02:09]}  Ng4+ {[%clk 0:01:08]} 29. Ke1 {[%clk 0:02:07]}  Nxh6 {[%clk 0:01:09]} 30. b5 {[%clk 0:02:06]}  Nf5 {[%clk 0:00:59]} 31. b6 {[%clk 0:02:05]}  Nd6 {[%clk 0:00:44]} 32. b7 {[%clk 0:02:04]}  Nxb7 {[%clk 0:00:42]} 33. Bxb7 {[%clk 0:02:05]} 1-0